[Event "43rd Indian-chT 2023-24"]
[Site "Dharamsala"]
[Date "2024.04.03"]
[Round "8.3"]
[White "Pavan Karthikeya Varma Gunturi"]
[Black "Ghosh, Diptayan"]
[Result "0-1"]
[ECO "B30"]
[WhiteElo "1831"]
[BlackElo "2559"]
[Annotator "ChessBase"]
[PlyCount "232"]
[EventDate "2024.03.28"]
[EventType "team-tourn"]
[EventCountry "IND"]
[SourceTitle "playchess.com"]
[Source "ChessBase"]
[SourceQuality "1"]
[TimeControl "5400+30"]

1. e4 {[%emt 0:00:06]} c5 {[%emt 0:02:20]} 2. Nc3 {[%emt 0:00:36]} Nc6 {[%emt 0:00:06]} 3. Bb5 {[%emt 0:00:44]} Nd4 {[%emt 0:00:05]} 4. Nf3 {[%emt 0:02:29]} e6 {[%emt 0:00:19]} 5. O-O {[%emt 0:00:32]} a6 {[%emt 0:00:26]} 6. Bd3 {[%emt 0:00:12]} Nc6 {[%emt 0:00:18]} 7. b3 {[%emt 0:00:17]} d6 {[%emt 0:02:31]} 8. Bb2 {[%emt 0:04:57]} Nf6 {[%emt 0:00:42]} 9. Re1 {[%emt 0:01:28]} Nd7 {[%emt 0:22:14]} 10. Bf1 {[%emt 0:10:28]} Nde5 {[%emt 0:06:42]} 11. Nxe5 {[%emt 0:07:02]} dxe5 {[%emt 0:00:14]} 12. d3 {[%emt 0:06:58]} Be7 {[%emt 0:01:40]} 13. g3 {[%emt 0:01:48]} b6 {[%emt 0:01:54]} 14. Bg2 {[%emt 0:03:01]} Bb7 {[%emt 0:00:05]} 15. Nb1 {[%emt 0:05:41]} O-O {[%emt 0:03:31]} 16. Nd2 {[%emt 0:02:29]} Qc7 {[%emt 0:00:56]} 17. Nf1 {[%emt 0:09:07]} Rad8 {[%emt 0:02:51]} 18. Ne3 {[%emt 0:01:36]} Nd4 {[%emt 0:03:00]} 19. c3 {[%emt 0:06:22]} Nc6 {[%emt 0:00:30]} 20. Qc2 {[%emt 0:01:27]} Rd7 {[%emt 0:02:52]} 21. Rad1 {[%emt 0:02:37]} b5 {[%emt 0:05:29]} 22. Rd2 {[%emt 0:05:25]} Rfd8 {[%emt 0:03:19]} 23. Red1 {[%emt 0:01:48]} Qb6 {[%emt 0:04:37]} 24. a3 {[%emt 0:03:58]} Rc8 {[%emt 0:02:28]} 25. Qb1 {[%emt 0:01:34]} Bg5 {[%emt 0:03:03]} 26. Bc1 {[%emt 0:03:49]} h5 {[%emt 0:02:49]} 27. Re2 {[%emt 0:02:36]} Qd8 {[%emt 0:01:14]} 28. Bf1 {[%emt 0:04:58]} g6 {[%emt 0:08:04]} 29. Ree1 {[%emt 0:00:44]} a5 {[%emt 0:03:17]} 30. Qb2 {[%emt 0:05:38]} Ba6 {[%emt 0:00:58]} 31. Nc2 {[%emt 0:01:04]} Bxc1 {[%emt 0:03:13]} 32. Qxc1 {[%emt 0:00:19]} b4 {[%emt 0:00:49]} 33. axb4 {[%emt 0:00:27]} cxb4 {[%emt 0:00:39]} 34. c4 {[%emt 0:00:11]} Qe7 {[%emt 0:00:10]} 35. Qe3 {[%emt 0:01:35]} Rcd8 {[%emt 0:04:43]} 36. Qb6 {[%emt 0:01:08]} Bb7 {[%emt 0:00:19]} 37. Be2 {[%emt 0:00:57]} h4 {[%emt 0:00:39]} 38. Qe3 {[%emt 0:00:36]} Kg7 {[%emt 0:00:08]} 39. g4 {[%emt 0:00:42]} g5 {[%emt 0:01:19]} 40. h3 {[%emt 0:00:20]} f6 {[%emt 0:00:38]} 41. Rd2 {[%emt 0:00:38]} Qd6 {[%emt 0:05:42]} 42. Red1 {[%emt 0:00:26]} Kh6 {[%emt 0:01:46]} 43. Qf3 {[%emt 0:01:54]} Kg7 {[%emt 0:00:26]} 44. Qe3 {[%emt 0:00:07]} Nd4 {[%emt 0:00:52]} 45. Nxd4 {[%emt 0:00:07]} exd4 {[%emt 0:00:03]} 46. Qf3 {[%emt 0:00:06]} Rf8 {[%emt 0:00:56]} 47. Qg2 {[%emt 0:01:07]} Qc5 {[%emt 0:00:13]} 48. Ra2 {[%emt 0:00:53]} Bc6 {[%emt 0:00:13]} 49. Rda1 {[%emt 0:00:34]} Ra7 {[%emt 0:00:04]} 50. Bd1 {[%emt 0:00:32]} Kh6 {[%emt 0:00:21]} 51. f4 {[%emt 0:01:02]} gxf4 {[%emt 0:00:41]} 52. Qf2 {[%emt 0:00:43]} Kg5 {[%emt 0:00:14]} 53. Qf3 {[%emt 0:00:30]} Qe5 {[%emt 0:00:51]} 54. Rf2 {[%emt 0:00:25]} Rfa8 {[%emt 0:00:26]} 55. Rfa2 {[%emt 0:00:29]} Qd6 {[%emt 0:01:18]} 56. Kf1 {[%emt 0:00:37]} Qe5 {[%emt 0:00:35]} 57. Kg1 {[%emt 0:00:06]} Rg8 {[%emt 0:00:39]} 58. Rg2 {[%emt 0:00:26]} Kh6 {[%emt 0:00:51]} 59. Kf1 {[%emt 0:00:31]} Rg6 {[%emt 0:00:56]} 60. Qf2 {[%emt 0:00:20]} Kg5 {[%emt 0:00:23]} 61. Qf3 {[%emt 0:00:12]} Rg8 {[%emt 0:00:14]} 62. Rf2 {[%emt 0:00:43]} Rga8 {[%emt 0:00:18]} 63. Rfa2 {[%emt 0:00:07]} Ra6 {[%emt 0:00:22]} 64. Qf2 {[%emt 0:00:42]} R8a7 {[%emt 0:00:06]} 65. Qf3 {[%emt 0:00:36]} Qd6 {[%emt 0:01:34]} 66. Qf2 {[%emt 0:00:33]} Qe5 {[%emt 0:01:31]} 67. Qf3 {[%emt 0:00:05]} Qb8 {[%emt 0:00:29]} 68. Qf2 {[%emt 0:00:09]} e5 {[%emt 0:00:25]} 69. Qb2 {[%emt 0:00:59]} Kg6 {[%emt 0:00:23]} 70. Qc2 {[%emt 0:00:30]} Kf7 {[%emt 0:00:11]} 71. Qf2 {[%emt 0:00:45]} Qh8 {[%emt 0:00:06]} 72. Qf3 {[%emt 0:00:48]} Ke7 {[%emt 0:00:11]} 73. Qf2 {[%emt 0:00:20]} Kd6 {[%emt 0:00:05]} 74. Qc2 {[%emt 0:00:38]} Kc5 {[%emt 0:00:09]} 75. Qf2 {[%emt 0:00:21]} Kb6 {[%emt 0:00:47]} 76. Qc2 {[%emt 0:00:27]} Qa8 {[%emt 0:01:10]} 77. Qd2 {[%emt 0:00:45]} Kc5 {[%emt 0:00:06]} 78. Qc2 {[%emt 0:00:10]} Rg7 {[%emt 0:01:00]} 79. Qf2 {[%emt 0:00:34]} Rh7 {[%emt 0:00:05]} 80. Qe1 {[%emt 0:00:32]} Qa7 {[%emt 0:00:32]} 81. Qf2 {[%emt 0:00:15]} Qb6 {[%emt 0:00:16]} 82. Qe1 {[%emt 0:00:41]} Kd6 {[%emt 0:00:57]} 83. Qf2 {[%emt 0:00:18]} Qc5 {[%emt 0:00:41]} 84. Qe1 {[%emt 0:00:12]} Ke7 {[%emt 0:00:27]} 85. Qf2 {[%emt 0:00:16]} Rh8 {[%emt 0:00:24]} 86. Qe1 {[%emt 0:00:09]} Kf7 {[%emt 0:00:08]} 87. Rg2 {[%emt 0:00:31]} Kg6 {[%emt 0:00:07]} 88. Rga2 {[%emt 0:00:20]} Kg5 {[%emt 0:00:27]} 89. Qf2 {[%emt 0:00:14]} Rb8 {[%emt 0:00:14]} 90. Rb2 {[%emt 0:00:57]} Qa7 {[%emt 0:01:14]} 91. Qc2 {[%emt 0:00:25]} Bd7 {[%emt 0:00:52]} 92. Qd2 {[%emt 0:00:54]} Ra8 {[%emt 0:00:49]} 93. Rba2 {[%emt 0:00:12]} Qb6 {[%emt 0:00:12]} 94. Qb2 {[%emt 0:00:20]} R6a7 {[%emt 0:00:13]} 95. Qc2 {[%emt 0:00:14]} Qc5 {[%emt 0:00:50]} 96. Qd2 {[%emt 0:00:21]} Rb8 {[%emt 0:00:11]} 97. Rb2 {[%emt 0:00:17]} Bc6 {[%emt 0:00:16]} 98. Qe1 {[%emt 0:00:24]} Rba8 {[%emt 0:01:32]} 99. Rba2 {[%emt 0:00:08]} Ra6 {[%emt 0:00:13]} 100. Qd2 {[%emt 0:00:16]} Qb6 {[%emt 0:00:15]} 101. Qc2 {[%emt 0:00:14]} Rb8 {[%emt 0:00:17]} 102. Rb2 {[%emt 0:00:20]} Qa7 {[%emt 0:00:08]} 103. Qd2 {[%emt 0:00:40]} a4 {[%emt 0:00:34]} 104. bxa4 {[%emt 0:00:43]} Bxa4 {[%emt 0:00:21]} 105. Rxb4 {[%emt 0:00:55]} Rxb4 {[%emt 0:00:17]} 106. Qxb4 {[%emt 0:00:07]} Bxd1 {[%emt 0:00:07]} 107. Rxd1 {[%emt 0:00:05]} Ra2 {[%emt 0:00:51]} 108. Qf8 {[%emt 0:00:48]} f3 {[%emt 0:00:36]} 109. Qg8+ {[%emt 0:01:54]} Kf4 {[%emt 0:00:25]} 110. Qg6 {[%emt 0:00:20]} Rf2+ {[%emt 0:00:37]} 111. Kg1 {[%emt 0:00:48]} Rg2+ {[%emt 0:00:04]} 112. Kh1 {[%emt 0:00:17]} Qa2 {[%emt 0:02:11]} 113. Qxf6+ {[%emt 0:00:30]} Kg3 {[%emt 0:00:12]} 114. Qxe5+ {[%emt 0:00:53]} Kxh3 {[%emt 0:00:11]} 115. g5 {[%emt 0:00:40]} Rh2+ {[%emt 0:00:06]} 116. Kg1 {[%emt 0:00:04]} Qg2# {[%emt 0:00:05]} 0-1

[Event "43rd Indian-chT 2023-24"]
[Site "Dharamsala"]
[Date "2024.04.03"]
[Round "8.4"]
[White "Visakh N R"]
[Black "Yohan Yadav Tarala"]
[Result "1-0"]
[ECO "A13"]
[WhiteElo "2521"]
[BlackElo "1746"]
[Annotator "RC"]
[PlyCount "51"]
[EventDate "2024.03.28"]
[EventType "team-tourn"]
[EventCountry "IND"]
[SourceTitle "playchess.com"]
[Source "ChessBase"]
[SourceQuality "1"]
[TimeControl "5400+30"]

1. Nf3 {[%emt 0:00:15]} d5 {[%emt 0:01:02]} 2. e3 {[%emt 0:02:16]} Nf6 {[%emt 0:01:27]} 3. c4 {[%emt 0:00:07]} e6 {[%emt 0:01:23]} 4. b3 {[%emt 0:01:13]} Be7 {[%emt 0:00:47]} 5. Bb2 {[%emt 0:01:34]} b6 {[%emt 0:05:27]} 6. cxd5 {[%emt 0:00:51]} exd5 {[%emt 0:03:15]} 7. g3 {[%emt 0:00:14]} O-O {[%emt 0:07:26]} 8. Bg2 {[%emt 0:00:16]} Ba6 {[%emt 0:02:41]} 9. d3 {[%emt 0:00:15]} Nbd7 {[%emt 0:00:19]} 10. O-O {[%emt 0:00:48]} Re8 {[%emt 0:05:50]} 11. Nc3 {[%emt 0:06:49]} c5 {[%emt 0:18:28]} 12. Re1 {[%emt 0:06:55]} Rc8 {[%emt 0:03:02]} 13. d4 {[%emt 0:09:00]} c4 {[%emt 0:05:56]} 14. bxc4 {[%emt 0:09:01]} Bxc4 {[%emt 0:04:43]} 15. Nd2 {[%emt 0:02:04]} b5 {[%emt 0:03:50]} 16. Nxc4 {[%emt 0:06:27]} dxc4 {[%emt 0:00:50]} 17. a3 {[%emt 0:00:07]} a6 {[%emt 0:16:59]} 18. e4 {[%emt 0:07:28]} Nb6 {[%emt 0:00:55]} 19. Qf3 {[%emt 0:01:58]} Qxd4 {[%emt 0:14:06]} 20. Rad1 {[%emt 0:05:55]} Qc5 {[%emt 0:00:51]} 21. e5 {[%emt 0:05:28]} Nfd7 {[%emt 0:00:06]} 22. Ne4 {[%emt 0:02:13]} Qc7 {[%emt 0:00:08]} 23. Bh3 {[%emt 0:00:02]} Rcd8 {[%emt 0:01:25]} 24. e6 {[%emt 0:01:17]} fxe6 {[%emt 0:00:06]} 25. Bxe6+ {[%emt 0:00:58]} Kh8 {[%emt 0:00:04]} 26. Qf7 {[%emt 0:00:20]} 1-0

[Event "43rd Indian-chT 2023-24"]
[Site "Dharamsala"]
[Date "2024.04.03"]
[Round "8.5"]
[White "Sharnarthi, Viresh"]
[Black "Shyaamnikhil P"]
[Result "0-1"]
[ECO "A47"]
[WhiteElo "2036"]
[BlackElo "2405"]
[Annotator "RC"]
[PlyCount "118"]
[EventDate "2024.03.28"]
[EventType "team-tourn"]
[EventCountry "IND"]
[SourceTitle "playchess.com"]
[Source "ChessBase"]
[SourceQuality "1"]
[TimeControl "5400+30"]

1. d4 {[%emt 0:05:07]} Nf6 {[%emt 0:01:29]} 2. Nf3 {[%emt 0:00:06]} b6 {[%emt 0:01:57]} 3. g3 {[%emt 0:00:33]} Bb7 {[%emt 0:00:26]} 4. Bg2 {[%emt 0:00:07]} c5 {[%emt 0:00:12]} 5. dxc5 {[%emt 0:00:20]} bxc5 {[%emt 0:00:07]} 6. c4 {[%emt 0:00:04]} g6 {[%emt 0:00:53]} 7. O-O {[%emt 0:00:48]} Bg7 {[%emt 0:00:06]} 8. Nc3 {[%emt 0:01:42]} O-O {[%emt 0:00:13]} 9. Bf4 {[%emt 0:12:12]} d6 {[%emt 0:01:25]} 10. Qd2 {[%emt 0:00:14]} Nbd7 {[%emt 0:05:29]} 11. Bh6 {[%emt 0:00:40]} Rb8 {[%emt 0:00:10]} 12. Rad1 {[%emt 0:02:53]} Bxf3 {[%emt 0:06:19]} 13. Bxf3 {[%emt 0:00:19]} Bxh6 {[%emt 0:00:09]} 14. Qxh6 {[%emt 0:00:05]} Rxb2 {[%emt 0:00:04]} 15. h4 {[%emt 0:08:44]} Qa5 {[%emt 0:03:00]} 16. Rc1 {[%emt 0:01:10]} Rfb8 {[%emt 0:14:06]} 17. h5 {[%emt 0:03:25]} Qd8 {[%emt 0:00:51]} 18. hxg6 {[%emt 0:00:07]} hxg6 {[%emt 0:12:01]} 19. Kg2 {[%emt 0:01:31]} Qf8 {[%emt 0:00:09]} 20. Qf4 {[%emt 0:00:27]} Qg7 {[%emt 0:00:46]} 21. Rh1 {[%emt 0:02:14]} Ne5 {[%emt 0:07:04]} 22. Qg5 {[%emt 0:04:09]} Kf8 {[%emt 0:12:27]} 23. Rh4 {[%emt 0:50:01]} Ng8 {[%emt 0:04:15]} 24. Bd5 {[%emt 0:00:01]} Nd7 {[%emt 0:06:22]} 25. Ne4 {[%emt 0:02:29]} Ndf6 {[%emt 0:08:52]} 26. Qe3 {[%emt 0:03:05]} Nxe4 {[%emt 0:03:05]} 27. Bxe4 {[%emt 0:00:31]} Qe5 {[%emt 0:09:55]} 28. Qf3 {[%emt 0:00:24]} Nf6 {[%emt 0:00:30]} 29. Rch1 {[%emt 0:00:02]} Ke8 {[%emt 0:01:34]} 30. Rh8+ {[%emt 0:01:09]} Kd7 {[%emt 0:00:05]} 31. Bc6+ {[%emt 0:00:12]} Kc7 {[%emt 0:00:08]} 32. Ba8 {[%emt 0:00:11]} d5 {[%emt 0:00:42]} 33. cxd5 {[%emt 0:00:03]} Kd6 {[%emt 0:00:09]} 34. Rxb8 {[%emt 0:00:52]} Rxb8 {[%emt 0:00:04]} 35. Bc6 {[%emt 0:00:40]} Qe4 {[%emt 0:00:12]} 36. Qxe4 {[%emt 0:00:32]} Nxe4 {[%emt 0:00:05]} 37. Rh7 {[%emt 0:00:10]} Ng5 {[%emt 0:00:28]} 38. Rg7 {[%emt 0:00:11]} Ke5 {[%emt 0:00:07]} 39. f4+ {[%emt 0:00:39]} Kf6 {[%emt 0:00:04]} 40. fxg5+ {[%emt 0:00:09]} Kxg7 {[%emt 0:00:04]} 41. a4 {[%emt 0:00:31]} c4 {[%emt 0:01:07]} 42. Kf2 {[%emt 0:00:14]} Rb3 {[%emt 0:00:19]} 43. e4 {[%emt 0:00:12]} f6 {[%emt 0:00:30]} 44. g4 {[%emt 0:00:34]} Rd3 {[%emt 0:03:25]} 45. Ke2 {[%emt 0:00:57]} Rd4 {[%emt 0:00:06]} 46. Ke3 {[%emt 0:01:10]} c3 {[%emt 0:00:26]} 47. Kxd4 {[%emt 0:00:04]} c2 {[%emt 0:00:03]} 48. gxf6+ {[%emt 0:00:12]} Kxf6 {[%emt 0:00:06]} 49. e5+ {[%emt 0:00:12]} Kf7 {[%emt 0:00:19]} 50. d6 {[%emt 0:00:29]} exd6 {[%emt 0:00:03]} 51. exd6 {[%emt 0:00:06]} c1=Q {[%emt 0:00:05]} 52. d7 {[%emt 0:00:04]} Ke7 {[%emt 0:00:04]} 53. Bb5 {[%emt 0:00:06]} Qd1+ {[%emt 0:00:08]} 54. Kc5 {[%emt 0:00:08]} Qxg4 {[%emt 0:00:10]} 55. Bc6 {[%emt 0:00:10]} Qf5+ {[%emt 0:00:11]} 56. Kb4 {[%emt 0:00:02]} Qf4+ {[%emt 0:00:15]} 57. Kb5 {[%emt 0:00:08]} Qc7 {[%emt 0:00:08]} 58. Kc5 {[%emt 0:00:06]} g5 {[%emt 0:00:12]} 59. Kd5 {[%emt 0:00:04]} Qd6+ {[%emt 0:00:04]} 0-1

[Event "43rd Indian-chT 2023-24"]
[Site "Dharamsala"]
[Date "2024.04.03"]
[Round "8.6"]
[White "Vignesh N R"]
[Black "Sharnarthi, Shlok"]
[Result "1-0"]
[ECO "E04"]
[WhiteElo "2525"]
[BlackElo "1937"]
[Annotator "TA"]
[PlyCount "81"]
[EventDate "2024.03.28"]
[EventType "team-tourn"]
[EventCountry "IND"]
[SourceTitle "playchess.com"]
[Source "ChessBase"]
[SourceQuality "1"]
[TimeControl "5400+30"]

{[%evp 24,81,44,27,20,12,12,11,16,19,70,69,69,36,77,79,121,124,125,117,140,147,237,204,338,312,309,320,318,311,325,304,315,321,319,317,451,446,437,450,538,512,1279,1259,2145,2028,29975,29976,29976,29977,29977,29978,29977,29979,29979,29980,29977,29977,29967,6712]} 1. Nf3 {[%emt 0:00:25]} d5 {[%emt 0:05:54]} 2. g3 {[%emt 0:00:43]} c5 {[%emt 0:00:43]} 3. Bg2 {[%emt 0:00:08]} Nc6 {[%emt 0:00:06]} 4. c4 {[%emt 0:03:24]} e6 {[%emt 0:01:30]} 5. O-O {[%emt 0:00:34]} Nf6 {[%emt 0:00:04]} 6. d4 {[%emt 0:05:32]} dxc4 {[%emt 0:02:51]} 7. Qa4 {[%emt 0:00:08]} Bd7 {[%emt 0:10:15]} 8. Qxc4 {[%emt 0:00:13]} cxd4 {[%emt 0:01:38]} 9. Nxd4 {[%emt 0:00:06]} Rc8 {[%emt 0:01:06]} 10. Nc3 {[%emt 0:02:41]} Nxd4 {[%emt 0:02:13]} 11. Qxd4 {[%emt 0:00:07]} Bc5 {[%emt 0:00:03]} 12. Qh4 {[%emt 0:00:34]} Bc6 {[%emt 0:01:04]} 13. Bg5 {[%emt 0:09:17]} Qd4 {[%emt 0:04:22]} 14. Bxc6+ {[%emt 0:12:06]} Rxc6 {[%emt 0:00:25]} 15. e4 {[%emt 0:00:23]} Be7 {[%emt 0:13:33] The position is equal.} 16. Rad1 {[%emt 0:05:03]} Qb4 {[%emt 0:00:00]} (16... Qc4 $11) 17. Qf4 $1 $14 {[%emt 0:08:36]} Rc8 {[%emt 0:00:22] Against Qb8} 18. Qd2 {[%emt 0:02:23] Black must now prevent Bxf6.} Rd8 {[%emt 0:12:58]} 19. Qe2 {[%emt 0:00:02] Hoping for Rxd8+. Black is now going downhill.} Nd7 {[%emt 0:06:24]} 20. a3 {[%emt 0:03:45]} Qc5 {[%emt 0:01:38]} 21. Be3 {[%emt 0:00:40]} Qc6 {[%emt 0:00:22]} 22. Rc1 {[%emt 0:06:43][%cal Oc3d5] aiming for Nd5! White is more active.} Bc5 {[%emt 0:06:45]} (22... Nc5 $16) 23. Nd5 {[%emt 0:01:32][%cal Bc3d5,Bd5b4,Bb4d3][%mdl 32]} Kf8 {[%emt 0:07:10]} (23... exd5 {keeps fighting.} 24. exd5 Qa6 25. Qxa6 (25. Bxc5+ Qxe2 26. Rfe1 Qe5 $11) 25... bxa6) 24. Nb4 {[%emt 0:04:39]} Qb6 {[%emt 0:04:09] [#]} 25. Rxc5 {[%emt 0:01:12][%mdl 512]} Nxc5 {[%emt 0:01:03]} 26. Rc1 {[%emt 0:00:02]} (26. Nd3 Rxd3 27. Bxc5+ Qxc5 $18) 26... Rc8 {[%emt 0:01:34]} 27. Nd3 {[%emt 0:00:45][%cal Re3c5]} Qb5 {[%emt 0:02:04]} 28. Rxc5 {[%emt 0:00:34]} Rxc5 {[%emt 0:00:09]} 29. Bxc5+ {[%emt 0:00:02]} Ke8 {[%emt 0:00:39]} (29... Kg8 $142 30. Bxa7 h6) 30. Bxa7 {[%emt 0:00:22]} f6 {[%emt 0:02:21]} 31. Qc2 {[%emt 0:01:59]} Kd7 {[%emt 0:01:45] Inhibits Qc8+.} 32. a4 {[%emt 0:01:21]} Qa5 {[%emt 0:01:37]} (32... Qc6 $142 33. Nc5+ Ke7) 33. Nc5+ $18 {[%emt 0:01:49]} Ke7 {[%emt 0:03:38] [#]} 34. Qb3 $1 {[%emt 0:00:15]} Kf7 {[%emt 0:03:03]} (34... Rd8 35. Qxb7+) 35. Qxe6+ {[%emt 0:00:19] White mates.} Kg6 {[%emt 0:00:12]} 36. Qg4+ {[%emt 0:00:05]} Kf7 {[%emt 0:00:06]} 37. Qd7+ {[%emt 0:01:51]} Kg6 {[%emt 0:00:08] [#]} 38. Ne6 $1 {[%emt 0:03:15]} Qe1+ {[%emt 0:02:04]} 39. Kg2 {[%emt 0:00:01]} Qxe4+ {[%emt 0:00:33]} 40. f3 {[%emt 0:00:02]} Qe2+ {[%emt 0:00:31]} 41. Bf2 {[%emt 0:00:02] Weighted Error Value: White=0.05 (flawless) /Black=0.63.  Mistake:       	---       	Black=5      Inaccurate:     	White=1     	Black=3      OK:         	White=10    	Black=5      Best:        	White=1     	---        Strong:       	White=1     	---        Brilliant:      	White=1     	---} 1-0

[Event "43rd Indian-chT 2023-24"]
[Site "Dharamsala"]
[Date "2024.04.03"]
[Round "8.7"]
[White "Om, Nagnath Lamkane"]
[Black "Swapnil, S. Dhopade"]
[Result "0-1"]
[ECO "B12"]
[WhiteElo "1923"]
[BlackElo "2454"]
[Annotator "TA"]
[PlyCount "128"]
[EventDate "2024.03.28"]
[EventType "team-tourn"]
[EventCountry "IND"]
[SourceTitle "playchess.com"]
[Source "ChessBase"]
[SourceQuality "1"]
[TimeControl "5400+30"]

{[%evp 11,128,25,4,1,18,17,16,16,7,0,18,0,0,0,0,0,0,0,0,0,0,0,39,22,22,-16,-7,-36,-3,-38,-42,-35,-29,-51,-45,-47,-54,-46,-38,-38,-42,-70,-70,-60,-67,-164,-160,-158,-168,-145,-197,-253,-249,-271,-238,-288,-245,-310,-333,-304,-335,-339,-339,-310,-270,-270,-270,-264,-258,-346,-342,-478,-355,-492,-489,-497,-474,-724,-748,-810,-787,-872,-1302,-1102,-736,-689,-628,-822,-580,-1448,-1471,-1415,-1379,-29972,-29972,-29970,-29971,-29976,-29977,-29976,-29973,-29973,-29974,-29980,-29981,-29981,-29982,-29981,-29982,-29982,-29982,-29981,-29982,-29988,-29989,-29992,-29993,-29993,-1425]} 1. e4 {[%emt 0:05:29]} c6 {[%emt 0:00:02]} 2. d4 {[%emt 0:00:32]} d5 {[%emt 0:00:05]} 3. e5 {[%emt 0:00:06]} Bf5 {[%emt 0:02:04]} 4. h4 {[%emt 0:01:21]} h5 {[%emt 0:01:00]} 5. Bd3 {[%emt 0:00:40]} Bxd3 {[%emt 0:00:38]} 6. Qxd3 {[%emt 0:00:06]} e6 {[%emt 0:00:16]} 7. Bg5 {[%emt 0:12:01]} Be7 {[%emt 0:00:09]} 8. Nf3 {[%emt 0:01:41]} Nh6 {[%emt 0:00:04]} 9. Nbd2 {[%emt 0:04:02] The position is equal.} Nf5 {[%emt 0:00:12]} 10. c4 {[%emt 0:05:45]} Na6 {[%emt 0:11:53][%cal Bb8a6,Ba6c7,Bc7d5][%mdl 32]} 11. a3 {[%emt 0:03:46]} dxc4 {[%emt 0:12:44]} 12. Nxc4 {[%emt 0:05:21]} Nc7 {[%emt 0:15:36]} 13. Ne3 {[%emt 0:05:11]} g6 {[%emt 0:00:59]} 14. g3 {[%emt 0:10:29]} Nd5 {[%emt 0:01:24]} 15. Bxe7 {[%emt 0:01:59]} Ndxe7 {[%emt 0:08:25]} 16. O-O {[%emt 0:02:12]} Kf8 {[%emt 0:03:48]} 17. Rfd1 {[%emt 0:08:29]} Kg7 {[%emt 0:00:13]} 18. Ne1 {[%emt 0:06:02]} Qb6 {[%emt 0:03:13]} 19. b4 {[%emt 0:05:20]} Rad8 {[%emt 0:00:46]} 20. N1c2 {[%emt 0:00:27]} Rd7 {[%emt 0:01:06]} 21. Rd2 {[%emt 0:10:09]} Rhd8 {[%emt 0:02:45][%cal Rf5d4]} 22. Nxf5+ {[%emt 0:00:58]} Nxf5 {[%emt 0:00:58]} 23. Rad1 {[%emt 0:00:05]} a5 {[%emt 0:09:01]} 24. Qc3 {[%emt 0:01:18]} axb4 {[%emt 0:00:06]} 25. axb4 {[%emt 0:00:06]} Ne7 {[%emt 0:15:43]} 26. Ne3 {[%emt 0:01:38]} Nd5 {[%emt 0:00:17]} 27. Nxd5 {[%emt 0:01:26]} Rxd5 {[%emt 0:00:07]} 28. Qc4 {[%emt 0:02:39] [#] Black continues to play with concentration.} (28. Kh2 $15) 28... Rb5 $1 $19 {[%emt 0:00:34]} 29. Rb1 {[%emt 0:01:58]} Rxe5 {[%emt 0:00:22]} 30. dxe5 {[%emt 0:00:16]} Rxd2 $17 {[%emt 0:00:05][%mdl 4096] Endgame. KQR-KQR} 31. Qc5 {[%emt 0:00:04]} (31. Qf4 $142 Qd4 32. Qxd4 Rxd4 33. b5) 31... Qd8 $19 {[%emt 0:03:14]} 32. Re1 {[%emt 0:01:43]} Rd5 {[%emt 0:01:10]} 33. Qe3 {[%emt 0:00:22]} Rd4 {[%emt 0:00:56]} 34. Rb1 {[%emt 0:00:50]} Qd5 {[%emt 0:00:15]} 35. Qg5 {[%emt 0:01:13]} Qf3 {[%emt 0:00:06] Prevents Qf6+.} 36. Qe7 {[%emt 0:01:09]} b5 {[%emt 0:04:08]} 37. Re1 {[%emt 0:01:13]} Qc3 {[%emt 0:01:52]} 38. Rb1 {[%emt 0:00:49]} Rd5 {[%emt 0:00:12] Active counter play!} 39. Qf6+ {[%emt 0:00:31]} Kg8 {[%emt 0:00:01]} 40. Qe7 {[%emt 0:00:32]} Rxe5 {[%emt 0:00:42]} ({But not} 40... Qxe5 41. Qe8+ Kg7 42. Qxc6) 41. Rd1 {[%emt 0:00:29] Black must now prevent Rd8+.} Qf3 {[%emt 0:03:11]} 42. Qe8+ {[%emt 0:00:32]} Kg7 {[%emt 0:00:07]} 43. Qd7 {[%emt 0:00:28]} Re4 {[%emt 0:00:27] Prevents Qd4+} 44. Qd2 {[%emt 0:00:28] [#]} (44. Rb1 $142) 44... Rxb4 $3 {[%emt 0:00:31][%mdl 512]} 45. Rc1 {[%emt 0:00:10]} (45. Rf1 Rc4) 45... Rc4 {[%emt 0:00:34]} 46. Rxc4 {[%emt 0:00:10]} bxc4 {[%emt 0:00:01] KQ-KQ} 47. Qd4+ {[%emt 0:00:08]} Kg8 {[%emt 0:00:37] ...c3 would now be deadly.} 48. Qxc4 {[%emt 0:00:14]} Qd1+ {[%emt 0:00:03]} 49. Kh2 {[%emt 0:00:08]} Qd5 {[%emt 0:00:04]} 50. Qf4 {[%emt 0:00:25]} c5 {[%emt 0:00:02]} 51. Qb8+ {[%emt 0:00:14]} Kg7 {[%emt 0:00:07]} 52. Qc7 {[%emt 0:00:07]} Qd4 {[%emt 0:00:08] Black mates.} 53. Kg2 {[%emt 0:00:08]} c4 {[%emt 0:00:03]} 54. Qc8 {[%emt 0:00:23]} c3 {[%emt 0:00:13]} 55. Qc7 {[%emt 0:00:22]} Qe4+ {[%emt 0:01:55]} 56. Kh2 {[%emt 0:00:25]} c2 {[%emt 0:00:41]} 57. Qc3+ {[%emt 0:00:32]} e5 {[%emt 0:00:38]} 58. Qc7 {[%emt 0:00:24]} Qe2 {[%emt 0:00:06]} 59. Kg2 {[%emt 0:00:11]} e4 {[%emt 0:01:54]} 60. Qc3+ {[%emt 0:03:18]} Kg8 {[%emt 0:00:04]} 61. Qc8+ {[%emt 0:00:34]} Kh7 {[%emt 0:00:08]} 62. Qc5 {[%emt 0:00:53] [#]} e3 $1 {[%emt 0:00:16]} 63. Qc7 {[%emt 0:00:34]} (63. Qxe3 Qxe3) 63... Qxf2+ {[%emt 0:00:07]} 64. Kh3 {[%emt 0:00:11]} Qf1+ {[%emt 0:00:04] Weighted Error Value: White=0.46/Black=0.16 (very precise) .  Mistake:       	White=3     	---        Inaccurate:     	White=7     	Black=2      OK:         	White=11    	Black=17     Best:        	White=1     	Black=3      Strong:       	---       	Black=1} (64... e2 $142 65. Qxc2 e1=Q (65... e1=B $2 66. Qxf2 Bxf2 67. g4 $19) 66. Qxf2 Qxf2 67. g4 hxg4+ 68. Kxg4 f5+ 69. Kh3 f4 70. Kg4 Qg3#) 0-1